[Event "*** Titled Tuesday Blitz"]
[Site "Chess.com"]
[Date "2020.11.03"]
[Round "3"]
[White "PetrolulSah"]
[Black "machupichu10"]
[Result "0-1"]
[WhiteElo "2187"]
[BlackElo "2769"]
[TimeControl "180+1"]
[EndTime "10:30:58 PST"]
[Termination "machupichu10 won on time"]

1. d4 {[%clk 0:03:00.9]} 1... Nf6 {[%clk 0:02:58.9]} 2. c4 {[%clk 0:02:59.8]}
2... e6 {[%clk 0:02:56.8]} 3. g3 {[%clk 0:02:59]} 3... d5 {[%clk 0:02:56.5]} 4.
Bg2 {[%clk 0:02:58.8]} 4... Be7 {[%clk 0:02:56.8]} 5. Nf3 {[%clk 0:02:58.6]}
5... O-O {[%clk 0:02:57.1]} 6. O-O {[%clk 0:02:58.5]} 6... Nbd7 {[%clk
0:02:57.5]} 7. Qc2 {[%clk 0:02:52.6]} 7... c6 {[%clk 0:02:57.7]} 8. Rd1 {[%clk
0:02:51.1]} 8... b6 {[%clk 0:02:57]} 9. Nc3 {[%clk 0:02:47.1]} 9... Bb7 {[%clk
0:02:56.6]} 10. e4 {[%clk 0:02:46.5]} 10... dxc4 {[%clk 0:02:42.1]} 11. Ne5
{[%clk 0:02:40.6]} 11... b5 {[%clk 0:02:37.5]} 12. b3 {[%clk 0:02:36.4]} 12...
cxb3 {[%clk 0:02:35.2]} 13. axb3 {[%clk 0:02:33.5]} 13... a6 {[%clk 0:02:30.1]}
14. Bg5 {[%clk 0:02:25.9]} 14... Rc8 {[%clk 0:02:24.3]} 15. Nxd7 {[%clk
0:02:17.8]} 15... Qxd7 {[%clk 0:01:15.9]} 16. e5 {[%clk 0:02:12]} 16... Nd5
{[%clk 0:01:15.9]} 17. Bxe7 {[%clk 0:02:11.8]} 17... Qxe7 {[%clk 0:01:15.7]} 18.
Ne4 {[%clk 0:02:09]} 18... f6 {[%clk 0:00:58.3]} 19. Nc5 {[%clk 0:01:42.8]}
19... Rcd8 {[%clk 0:00:50.7]} 20. Bh3 {[%clk 0:01:26.5]} 20... Bc8 {[%clk
0:00:49.9]} 21. Ne4 {[%clk 0:01:12.1]} 21... fxe5 {[%clk 0:00:30.4]} 22. dxe5
{[%clk 0:01:11.5]} 22... Nb4 {[%clk 0:00:22]} 23. Qc5 {[%clk 0:01:02.6]} 23...
Qxc5 {[%clk 0:00:20.8]} 24. Nxc5 {[%clk 0:01:02.3]} 24... Kf7 {[%clk 0:00:19.7]}
25. Rd6 {[%clk 0:00:48.5]} 25... Rxd6 {[%clk 0:00:08.8]} 26. exd6 {[%clk
0:00:48.4]} 26... Rd8 {[%clk 0:00:09.4]} 27. d7 {[%clk 0:00:40.4]} 27... Bxd7
{[%clk 0:00:09.4]} 28. Rd1 {[%clk 0:00:39.4]} 28... Ke7 {[%clk 0:00:08]} 29.
Bxe6 {[%clk 0:00:23.2]} 29... Be8 {[%clk 0:00:03.4]} 30. Rxd8 {[%clk 0:00:14.6]}
30... Kxd8 {[%clk 0:00:03.3]} 31. Kf1 {[%clk 0:00:13.1]} 31... Ke7 {[%clk
0:00:03.3]} 32. Bg4 {[%clk 0:00:09.7]} 32... Kd6 {[%clk 0:00:03]} 33. Ne4+
{[%clk 0:00:09]} 33... Ke5 {[%clk 0:00:03.3]} 34. Nd2 {[%clk 0:00:08.5]} 34...
Kd4 {[%clk 0:00:03.8]} 35. Ke2 {[%clk 0:00:08.4]} 35... Bf7 {[%clk 0:00:04.2]}
36. Bf3 {[%clk 0:00:07.2]} 36... a5 {[%clk 0:00:04.2]} 37. Bg2 {[%clk
0:00:06.7]} 37... Kc3 {[%clk 0:00:04.8]} 38. Kd1 {[%clk 0:00:03]} 38... Bxb3+
{[%clk 0:00:05.2]} 39. Kc1 {[%clk 0:00:01.7]} 39... Nd3+ {[%clk 0:00:05.6]} 0-1

[Event "*** Titled Tuesday Blitz"]
[Site "Chess.com"]
[Date "2020.11.03"]
[Round "3"]
[White "m_ezat"]
[Black "SHIVACalypso"]
[Result "0-1"]
[WhiteElo "2529"]
[BlackElo "2335"]
[TimeControl "180+1"]
[EndTime "10:30:58 PST"]
[Termination "SHIVACalypso won by checkmate"]

1. d4 {[%clk 0:03:00.9]} 1... e6 {[%clk 0:02:59.8]} 2. c4 {[%clk 0:03:00.9]}
2... Nf6 {[%clk 0:03:00.2]} 3. Nc3 {[%clk 0:03:00.7]} 3... Bb4 {[%clk
0:03:00.4]} 4. e3 {[%clk 0:03:00.9]} 4... O-O {[%clk 0:02:58.7]} 5. a3 {[%clk
0:03:00.3]} 5... Bxc3+ {[%clk 0:02:55.7]} 6. bxc3 {[%clk 0:03:00]} 6... b6
{[%clk 0:02:56.3]} 7. Bd3 {[%clk 0:02:57.1]} 7... Bb7 {[%clk 0:02:56.5]} 8. f3
{[%clk 0:02:56.4]} 8... c5 {[%clk 0:02:53.9]} 9. Ne2 {[%clk 0:02:56]} 9... d5
{[%clk 0:02:53.3]} 10. cxd5 {[%clk 0:02:54.2]} 10... exd5 {[%clk 0:02:49.8]} 11.
O-O {[%clk 0:02:54.1]} 11... Nbd7 {[%clk 0:02:48.3]} 12. Ng3 {[%clk 0:02:54.6]}
12... Re8 {[%clk 0:02:47.5]} 13. Ra2 {[%clk 0:02:52.4]} 13... Qc7 {[%clk
0:02:42.4]} 14. Re2 {[%clk 0:02:48.7]} 14... Rac8 {[%clk 0:02:32.2]} 15. e4
{[%clk 0:02:46.2]} 15... cxd4 {[%clk 0:02:24]} 16. cxd4 {[%clk 0:02:44.5]} 16...
dxe4 {[%clk 0:02:17.6]} 17. fxe4 {[%clk 0:02:43.8]} 17... Qc3 {[%clk 0:02:14]}
18. Bb2 {[%clk 0:02:32.9]} 18... Qa5 {[%clk 0:02:04]} 19. Rf5 {[%clk 0:02:06.4]}
19... b5 {[%clk 0:01:48.3]} 20. Rxb5 {[%clk 0:02:01.3]} 20... Qc7 {[%clk
0:01:48.3]} 21. Rf5 {[%clk 0:01:39.9]} 21... Nb6 {[%clk 0:01:25.6]} 22. Rxf6
{[%clk 0:01:08]} 22... gxf6 {[%clk 0:01:24.7]} 23. Nh5 {[%clk 0:01:07.8]} 23...
Re6 {[%clk 0:01:16.3]} 24. Rc2 {[%clk 0:01:07.5]} 24... Qd7 {[%clk 0:00:42.1]}
25. Qg4+ {[%clk 0:01:01.1]} 25... Kf8 {[%clk 0:00:41.9]} 26. Qg7+ {[%clk
0:01:01]} 26... Ke7 {[%clk 0:00:41.6]} 27. d5 {[%clk 0:01:00.6]} 27... Rxc2
{[%clk 0:00:38]} 28. Bxc2 {[%clk 0:00:54.7]} 28... Nxd5 {[%clk 0:00:32]} 29. h3
{[%clk 0:00:22.2]} 29... Qb5 {[%clk 0:00:23.9]} 30. exd5 {[%clk 0:00:17.7]}
30... Qxd5 {[%clk 0:00:21.6]} 31. Bxf6+ {[%clk 0:00:15.8]} 31... Kd6 {[%clk
0:00:21.1]} 32. Qg3+ {[%clk 0:00:13.8]} 32... Kd7 {[%clk 0:00:19.1]} 33. Ba4+
{[%clk 0:00:11.3]} 33... Bc6 {[%clk 0:00:18.5]} 34. Bxc6+ {[%clk 0:00:08.1]}
34... Qxc6 {[%clk 0:00:19.4]} 35. Nf4 {[%clk 0:00:08.1]} 35... Rxf6 {[%clk
0:00:16.9]} 36. Qd3+ {[%clk 0:00:07.8]} 36... Rd6 {[%clk 0:00:16.4]} 37. Qf5+
{[%clk 0:00:07.5]} 37... Ke7 {[%clk 0:00:15.7]} 38. Qe5+ {[%clk 0:00:07.2]}
38... Kd8 {[%clk 0:00:15.3]} 39. Qh8+ {[%clk 0:00:06.9]} 39... Kc7 {[%clk
0:00:15]} 40. Qxh7 {[%clk 0:00:05.6]} 40... Qc1+ {[%clk 0:00:14.6]} 41. Kh2
{[%clk 0:00:05.8]} 41... Qxf4+ {[%clk 0:00:15.2]} 42. Kg1 {[%clk 0:00:06.1]}
42... Rd1# {[%clk 0:00:15]} 0-1

[Event "*** Titled Tuesday Blitz"]
[Site "Chess.com"]
[Date "2020.11.03"]
[Round "3"]
[White "emiliochess"]
[Black "crossingthestreet"]
[Result "0-1"]
[WhiteElo "2268"]
[BlackElo "2559"]
[TimeControl "180+1"]
[EndTime "10:30:58 PST"]
[Termination "crossingthestreet won by checkmate"]

1. d4 {[%clk 0:03:00.9]} 1... d5 {[%clk 0:02:59.3]} 2. Bf4 {[%clk 0:03:01]} 2...
Nf6 {[%clk 0:02:58]} 3. e3 {[%clk 0:03:01.1]} 3... e6 {[%clk 0:02:58.5]} 4. Bd3
{[%clk 0:02:59]} 4... Bd6 {[%clk 0:02:59]} 5. Bg3 {[%clk 0:02:57.2]} 5... O-O
{[%clk 0:02:59.5]} 6. Nd2 {[%clk 0:02:56.1]} 6... c5 {[%clk 0:02:59.9]} 7. c3
{[%clk 0:02:56.2]} 7... Qc7 {[%clk 0:03:00.2]} 8. Ngf3 {[%clk 0:02:55.5]} 8...
Nbd7 {[%clk 0:03:00.3]} 9. Qe2 {[%clk 0:02:53.6]} 9... e5 {[%clk 0:03:00.1]} 10.
dxe5 {[%clk 0:02:51.9]} 10... Nxe5 {[%clk 0:03:01]} 11. Bc2 {[%clk 0:02:45.3]}
11... Re8 {[%clk 0:02:57.2]} 12. O-O {[%clk 0:02:44.8]} 12... Bg4 {[%clk
0:02:56.3]} 13. Bxe5 {[%clk 0:02:31]} 13... Bxe5 {[%clk 0:02:53.8]} 14. h3
{[%clk 0:02:31.2]} 14... Bh5 {[%clk 0:02:53.8]} 15. Qb5 {[%clk 0:02:30]} 15...
a6 {[%clk 0:02:35.8]} 16. Qa4 {[%clk 0:02:20.8]} 16... c4 {[%clk 0:02:26.9]} 17.
Nxe5 {[%clk 0:02:16.6]} 17... Qxe5 {[%clk 0:02:26.9]} 18. Rae1 {[%clk
0:02:14.9]} 18... b5 {[%clk 0:02:24]} 19. Qb4 {[%clk 0:02:14.5]} 19... Ne4
{[%clk 0:02:21]} 20. Bxe4 {[%clk 0:01:57.1]} 20... dxe4 {[%clk 0:02:09.7]} 21.
f3 {[%clk 0:01:57]} 21... exf3 {[%clk 0:01:54.6]} 22. Nxf3 {[%clk 0:01:57.9]}
22... Bxf3 {[%clk 0:01:52.7]} 23. Rxf3 {[%clk 0:01:58.8]} 23... Rad8 {[%clk
0:01:51]} 24. b3 {[%clk 0:01:51.7]} 24... Rc8 {[%clk 0:01:47.8]} 25. e4 {[%clk
0:01:40.6]} 25... Red8 {[%clk 0:01:26.2]} 26. a4 {[%clk 0:01:29.2]} 26... Rd2
{[%clk 0:01:24.5]} 27. Rfe3 {[%clk 0:01:08.8]} 27... h6 {[%clk 0:01:07.9]} 28.
axb5 {[%clk 0:01:01.9]} 28... axb5 {[%clk 0:01:08.8]} 29. bxc4 {[%clk
0:00:53.7]} 29... bxc4 {[%clk 0:01:04.4]} 30. R1e2 {[%clk 0:00:50.3]} 30... Rd1+
{[%clk 0:00:45.2]} 31. Re1 {[%clk 0:00:48.9]} 31... Rd3 {[%clk 0:00:45.2]} 32.
Qb7 {[%clk 0:00:30.6]} 32... Rb8 {[%clk 0:00:38.5]} 33. Qc6 {[%clk 0:00:25.4]}
33... Rxe3 {[%clk 0:00:35.2]} 34. Rxe3 {[%clk 0:00:20.7]} 34... Rb1+ {[%clk
0:00:35.4]} 35. Kf2 {[%clk 0:00:18.4]} 35... Qf4+ {[%clk 0:00:34.1]} 36. Rf3
{[%clk 0:00:17.9]} 36... Rb2+ {[%clk 0:00:34.2]} 37. Kg1 {[%clk 0:00:18.1]}
37... Rb1+ {[%clk 0:00:31.8]} 38. Kf2 {[%clk 0:00:18.2]} 38... Qd2+ {[%clk
0:00:32.2]} 39. Kg3 {[%clk 0:00:18.6]} 39... Rg1 {[%clk 0:00:30.1]} 40. Qc8+
{[%clk 0:00:18.1]} 40... Kh7 {[%clk 0:00:29.7]} 41. Qf5+ {[%clk 0:00:18.7]}
41... Kh8 {[%clk 0:00:30.2]} 42. Qc8+ {[%clk 0:00:18.8]} 42... Kh7 {[%clk
0:00:28.9]} 43. Qf5+ {[%clk 0:00:19.2]} 43... Kg8 {[%clk 0:00:25.4]} 44. Qxf7+
{[%clk 0:00:18.8]} 44... Kh8 {[%clk 0:00:24.4]} 45. Qe8+ {[%clk 0:00:16.2]}
45... Kh7 {[%clk 0:00:24.6]} 46. Qe5 {[%clk 0:00:04.1]} 46... Qxg2+ {[%clk
0:00:16.6]} 47. Kh4 {[%clk 0:00:04.6]} 47... g5+ {[%clk 0:00:14]} 48. Kh5 {[%clk
0:00:04.5]} 48... Qxf3# {[%clk 0:00:13.9]} 0-1

[Event "*** Titled Tuesday Blitz"]
[Site "Chess.com"]
[Date "2020.11.03"]
[Round "3"]
[White "gixfantastix"]
[Black "norwaytoadog"]
[Result "1-0"]
[WhiteElo "2117"]
[BlackElo "2317"]
[TimeControl "180+1"]
[EndTime "10:30:58 PST"]
[Termination "gixfantastix won on time"]

1. d4 {[%clk 0:03:00.9]} 1... Nf6 {[%clk 0:02:59]} 2. f4 {[%clk 0:03:01]} 2...
d5 {[%clk 0:02:53.4]} 3. Nf3 {[%clk 0:03:01.1]} 3... Bf5 {[%clk 0:02:51.3]} 4.
e3 {[%clk 0:03:01.5]} 4... e6 {[%clk 0:02:50]} 5. Bd3 {[%clk 0:03:02.4]} 5...
Bxd3 {[%clk 0:02:46.1]} 6. Qxd3 {[%clk 0:03:03.3]} 6... c5 {[%clk 0:02:41.3]} 7.
O-O {[%clk 0:03:01.5]} 7... Nc6 {[%clk 0:02:40.6]} 8. c3 {[%clk 0:03:00.3]} 8...
Bd6 {[%clk 0:02:35.4]} 9. Nbd2 {[%clk 0:03:00.1]} 9... O-O {[%clk 0:02:33.3]}
10. Ne5 {[%clk 0:03:00.6]} 10... Qc7 {[%clk 0:02:23.5]} 11. Ndf3 {[%clk
0:02:56.1]} 11... Ne4 {[%clk 0:02:21.7]} 12. Bd2 {[%clk 0:02:53.9]} 12... f6
{[%clk 0:02:16.7]} 13. Nxc6 {[%clk 0:02:49.6]} 13... bxc6 {[%clk 0:02:12.4]} 14.
Rae1 {[%clk 0:02:39.6]} 14... c4 {[%clk 0:02:10.8]} 15. Qe2 {[%clk 0:02:38.3]}
15... Rab8 {[%clk 0:02:10.8]} 16. Bc1 {[%clk 0:02:38.5]} 16... a5 {[%clk
0:02:01.1]} 17. Nd2 {[%clk 0:02:33.4]} 17... f5 {[%clk 0:01:44]} 18. Nxe4 {[%clk
0:02:30.3]} 18... fxe4 {[%clk 0:01:43.4]} 19. Qg4 {[%clk 0:02:30.7]} 19... Rf5
{[%clk 0:01:41.8]} 20. Qh3 {[%clk 0:02:23.3]} 20... h5 {[%clk 0:01:38.3]} 21.
Kh1 {[%clk 0:02:16.7]} 21... Kf7 {[%clk 0:01:30.4]} 22. Rg1 {[%clk 0:02:16.7]}
22... Rg8 {[%clk 0:01:08]} 23. g4 {[%clk 0:02:12.2]} 23... hxg4 {[%clk
0:01:07.7]} 24. Rxg4 {[%clk 0:02:13.1]} 24... Qe7 {[%clk 0:01:04.9]} 25. Reg1
{[%clk 0:02:12.1]} 25... Qf6 {[%clk 0:00:56.3]} 26. Bd2 {[%clk 0:02:09.9]} 26...
Be7 {[%clk 0:00:46.2]} 27. Be1 {[%clk 0:02:09.7]} 27... Ke8 {[%clk 0:00:39.9]}
28. Qh7 {[%clk 0:01:51.4]} 28... Kf8 {[%clk 0:00:33.7]} 29. Bh4 {[%clk
0:01:49.9]} 29... Qf7 {[%clk 0:00:29.7]} 30. Bxe7+ {[%clk 0:01:43.6]} 30... Qxe7
{[%clk 0:00:29.7]} 31. Rg6 {[%clk 0:01:39.5]} 31... Rf7 {[%clk 0:00:27]} 32. Qh3
{[%clk 0:01:37]} 32... Rf6 {[%clk 0:00:25.2]} 33. R6g5 {[%clk 0:01:26.7]} 33...
Qf7 {[%clk 0:00:21]} 34. Qg4 {[%clk 0:01:23.1]} 34... Rf5 {[%clk 0:00:20.3]} 35.
Rg6 {[%clk 0:01:22.7]} 35... Rf6 {[%clk 0:00:18.3]} 36. Qh5 {[%clk 0:01:08.3]}
36... Rxg6 {[%clk 0:00:17.6]} 37. Rxg6 {[%clk 0:01:09.2]} 37... Ke7 {[%clk
0:00:14.2]} 38. Qg4 {[%clk 0:01:07.2]} 38... Kd7 {[%clk 0:00:12.1]} 39. Kg2
{[%clk 0:01:04.2]} 39... Kc7 {[%clk 0:00:10.7]} 40. h4 {[%clk 0:01:04.4]} 40...
Kd7 {[%clk 0:00:10.6]} 41. h5 {[%clk 0:01:04.8]} 41... Kd6 {[%clk 0:00:05.4]}
42. h6 {[%clk 0:01:03.7]} 42... Rh8 {[%clk 0:00:02.4]} 43. Rxg7 {[%clk
0:00:42.4]} 43... Qf6 {[%clk 0:00:01.9]} 44. h7 {[%clk 0:00:40.9]} 44... Qh6
{[%clk 0:00:01.3]} 45. Rg6 {[%clk 0:00:36.2]} 1-0

[Event "*** Titled Tuesday Blitz"]
[Site "Chess.com"]
[Date "2020.11.03"]
[Round "3"]
[White "Caracternin123"]
[Black "CM_rui"]
[Result "1-0"]
[WhiteElo "2598"]
[BlackElo "2380"]
[TimeControl "180+1"]
[EndTime "10:30:59 PST"]
[Termination "Caracternin123 won by checkmate"]

1. d4 {[%clk 0:03:00.9]} 1... Nf6 {[%clk 0:03:00.2]} 2. Nf3 {[%clk 0:03:00.6]}
2... e6 {[%clk 0:03:00.7]} 3. g3 {[%clk 0:03:00.8]} 3... c5 {[%clk 0:02:59.3]}
4. Bg2 {[%clk 0:03:01.2]} 4... d5 {[%clk 0:02:59.8]} 5. O-O {[%clk 0:03:01.5]}
5... Nc6 {[%clk 0:03:00.3]} 6. c4 {[%clk 0:03:01.9]} 6... Be7 {[%clk 0:02:58.9]}
7. Nc3 {[%clk 0:03:01.6]} 7... O-O {[%clk 0:02:57.8]} 8. dxc5 {[%clk 0:03:00.7]}
8... d4 {[%clk 0:02:55.2]} 9. Na4 {[%clk 0:02:55.7]} 9... e5 {[%clk 0:02:52]}
10. a3 {[%clk 0:02:51]} 10... Be6 {[%clk 0:02:42.2]} 11. Qc2 {[%clk 0:02:21.3]}
11... h6 {[%clk 0:02:37.8]} 12. b4 {[%clk 0:02:17.5]} 12... Qc7 {[%clk
0:02:32.8]} 13. Bb2 {[%clk 0:02:13.6]} 13... Rad8 {[%clk 0:02:30.1]} 14. Rfd1
{[%clk 0:02:13.3]} 14... e4 {[%clk 0:02:12.9]} 15. Nxd4 {[%clk 0:02:11.8]} 15...
e3 {[%clk 0:02:05.3]} 16. fxe3 {[%clk 0:01:53.7]} 16... Nxd4 {[%clk 0:01:54.8]}
17. exd4 {[%clk 0:01:42.8]} 17... Ng4 {[%clk 0:01:54.8]} 18. Qe4 {[%clk
0:01:25.9]} 18... Bg5 {[%clk 0:01:42]} 19. Bc1 {[%clk 0:01:17.8]} 19... Bf6
{[%clk 0:01:22.8]} 20. Bf4 {[%clk 0:01:03.3]} 20... Qd7 {[%clk 0:01:17.5]} 21.
Nc3 {[%clk 0:01:03.2]} 21... Bxd4+ {[%clk 0:01:15.7]} 22. Rxd4 {[%clk 0:00:57]}
22... Qxd4+ {[%clk 0:01:14.9]} 23. Qxd4 {[%clk 0:00:55.6]} 23... Rxd4 {[%clk
0:01:15.8]} 24. Bxb7 {[%clk 0:00:55.7]} 24... Rxc4 {[%clk 0:01:15.2]} 25. Nb5
{[%clk 0:00:55.4]} 25... Rc2 {[%clk 0:01:14.4]} 26. Nxa7 {[%clk 0:00:47.6]}
26... Rxe2 {[%clk 0:01:13.9]} 27. Bf3 {[%clk 0:00:47.5]} 27... Rb2 {[%clk
0:01:10]} 28. Bxg4 {[%clk 0:00:43.4]} 28... Bxg4 {[%clk 0:01:09.7]} 29. c6
{[%clk 0:00:43.2]} 29... Bf3 {[%clk 0:01:02.4]} 30. c7 {[%clk 0:00:42.6]} 30...
Rg2+ {[%clk 0:01:00.9]} 31. Kf1 {[%clk 0:00:42.2]} 31... Rxh2 {[%clk 0:01:00.7]}
32. Rc1 {[%clk 0:00:39.1]} 32... Rh1+ {[%clk 0:00:32.2]} 33. Kf2 {[%clk
0:00:39.5]} 33... Rxc1 {[%clk 0:00:30.8]} 34. Bxc1 {[%clk 0:00:40.4]} 34... Bb7
{[%clk 0:00:30.8]} 35. b5 {[%clk 0:00:38.1]} 35... Ra8 {[%clk 0:00:29.1]} 36.
Be3 {[%clk 0:00:36.5]} 36... Kf8 {[%clk 0:00:29.2]} 37. a4 {[%clk 0:00:34.7]}
37... Ke8 {[%clk 0:00:28.9]} 38. a5 {[%clk 0:00:34.9]} 38... Kd7 {[%clk
0:00:29.3]} 39. a6 {[%clk 0:00:35.3]} 39... Bxa6 {[%clk 0:00:27.2]} 40. bxa6
{[%clk 0:00:32.9]} 40... Kxc7 {[%clk 0:00:28.1]} 41. Kf3 {[%clk 0:00:25.2]}
41... Re8 {[%clk 0:00:24.6]} 42. Nb5+ {[%clk 0:00:21.5]} 42... Kc6 {[%clk
0:00:22.2]} 43. Nd4+ {[%clk 0:00:19.7]} 43... Kb6 {[%clk 0:00:20.5]} 44. Ne6+
{[%clk 0:00:20.2]} 44... Kxa6 {[%clk 0:00:20.5]} 45. Nc7+ {[%clk 0:00:20.3]}
45... Kb7 {[%clk 0:00:20.1]} 46. Nxe8 {[%clk 0:00:21.2]} 46... Kc6 {[%clk
0:00:21]} 47. Nxg7 {[%clk 0:00:21.4]} 47... Kd7 {[%clk 0:00:20.6]} 48. Bxh6
{[%clk 0:00:21.2]} 48... Ke7 {[%clk 0:00:20.6]} 49. Nh5 {[%clk 0:00:21.6]} 49...
f5 {[%clk 0:00:20.3]} 50. Be3 {[%clk 0:00:20.8]} 50... Ke6 {[%clk 0:00:20.4]}
51. Kf4 {[%clk 0:00:21.1]} 51... Kd5 {[%clk 0:00:19.8]} 52. Kxf5 {[%clk
0:00:22]} 52... Kc4 {[%clk 0:00:20.3]} 53. g4 {[%clk 0:00:22.9]} 53... Kd3
{[%clk 0:00:20.3]} 54. Bf4 {[%clk 0:00:23.8]} 54... Ke2 {[%clk 0:00:20.9]} 55.
g5 {[%clk 0:00:24.7]} 55... Kf3 {[%clk 0:00:21.7]} 56. g6 {[%clk 0:00:25.6]}
56... Kg2 {[%clk 0:00:22.6]} 57. g7 {[%clk 0:00:26.5]} 57... Kf3 {[%clk
0:00:23.5]} 58. g8=Q {[%clk 0:00:26.4]} 58... Ke2 {[%clk 0:00:24.4]} 59. Qc4+
{[%clk 0:00:26.3]} 59... Kf3 {[%clk 0:00:25.3]} 60. Qd3+ {[%clk 0:00:26.1]}
60... Kg2 {[%clk 0:00:24.9]} 61. Qe2+ {[%clk 0:00:25.6]} 61... Kg1 {[%clk
0:00:24.4]} 62. Be3+ {[%clk 0:00:25.8]} 62... Kh1 {[%clk 0:00:24.4]} 63. Ng3#
{[%clk 0:00:26.6]} 1-0

[Event "*** Titled Tuesday Blitz"]
[Site "Chess.com"]
[Date "2020.11.03"]
[Round "3"]
[White "BanjoKazooieN64"]
[Black "AndrewMcStone"]
[Result "1-0"]
[WhiteElo "2372"]
[BlackElo "2128"]
[TimeControl "180+1"]
[EndTime "10:30:59 PST"]
[Termination "BanjoKazooieN64 won on time"]

1. e4 {[%clk 0:03:00.9]} 1... Nc6 {[%clk 0:02:58.8]} 2. Nf3 {[%clk 0:02:59.6]}
2... d6 {[%clk 0:02:59]} 3. d4 {[%clk 0:02:59.1]} 3... Nf6 {[%clk 0:02:59.5]} 4.
d5 {[%clk 0:02:56.5]} 4... Ne5 {[%clk 0:02:57.8]} 5. Nxe5 {[%clk 0:02:56.4]}
5... dxe5 {[%clk 0:02:58.7]} 6. Nc3 {[%clk 0:02:56.5]} 6... c6 {[%clk
0:02:47.6]} 7. dxc6 {[%clk 0:02:38.9]} 7... Qxd1+ {[%clk 0:02:40.1]} 8. Kxd1
{[%clk 0:02:37]} 8... bxc6 {[%clk 0:02:34.8]} 9. Bc4 {[%clk 0:02:36.9]} 9... e6
{[%clk 0:01:50.2]} 10. Ke2 {[%clk 0:02:32.8]} 10... Bc5 {[%clk 0:01:41.6]} 11.
f3 {[%clk 0:02:30.5]} 11... O-O {[%clk 0:01:40.3]} 12. Bg5 {[%clk 0:02:29.6]}
12... Bd4 {[%clk 0:01:33.2]} 13. Rad1 {[%clk 0:02:27]} 13... a5 {[%clk
0:01:22.2]} 14. Na4 {[%clk 0:02:25.7]} 14... Ba6 {[%clk 0:01:01.8]} 15. Bxa6
{[%clk 0:02:25.6]} 15... Rxa6 {[%clk 0:01:02.7]} 16. c3 {[%clk 0:02:26.1]} 16...
Bb6 {[%clk 0:00:58.2]} 17. Bxf6 {[%clk 0:02:12.8]} 17... gxf6 {[%clk 0:00:57.1]}
18. Rd7 {[%clk 0:02:13.4]} 18... Rb8 {[%clk 0:00:41.7]} 19. Rhd1 {[%clk
0:02:12]} 19... Kf8 {[%clk 0:00:35]} 20. R1d6 {[%clk 0:02:07.6]} 20... Ke8
{[%clk 0:00:26.1]} 21. Rd1 {[%clk 0:01:57.5]} 21... h6 {[%clk 0:00:16.7]} 22. b3
{[%clk 0:01:48.9]} 22... Bd8 {[%clk 0:00:16]} 23. Nc5 {[%clk 0:01:44.7]} 23...
Raa8 {[%clk 0:00:14.8]} 24. Na4 {[%clk 0:01:35.8]} 24... Be7 {[%clk 0:00:14.5]}
25. Rc7 {[%clk 0:01:31.1]} 25... Rc8 {[%clk 0:00:14.3]} 26. Rdd7 {[%clk
0:01:30.6]} 26... Rxc7 {[%clk 0:00:13.6]} 27. Rxc7 {[%clk 0:01:31.1]} 27... Ra6
{[%clk 0:00:12.1]} 28. Kd3 {[%clk 0:01:22.8]} 28... Kd8 {[%clk 0:00:11.5]} 29.
Rb7 {[%clk 0:01:21.8]} 29... f5 {[%clk 0:00:08.4]} 30. Kc4 {[%clk 0:01:19.3]}
30... fxe4 {[%clk 0:00:08]} 31. fxe4 {[%clk 0:01:19]} 31... f5 {[%clk
0:00:08.5]} 32. exf5 {[%clk 0:01:10.4]} 32... exf5 {[%clk 0:00:09.4]} 33. Nc5
{[%clk 0:01:08.7]} 33... Bxc5 {[%clk 0:00:08.5]} 34. Kxc5 {[%clk 0:01:09.2]}
34... Ke8 {[%clk 0:00:04.5]} 35. Kd6 {[%clk 0:01:09]} 35... e4 {[%clk
0:00:03.7]} 36. Re7+ {[%clk 0:00:59.6]} 36... Kf8 {[%clk 0:00:03.2]} 37. Re5
{[%clk 0:00:59.6]} 37... c5+ {[%clk 0:00:03.5]} 38. Kd5 {[%clk 0:00:59.9]} 38...
Ra7 {[%clk 0:00:02.4]} 39. Rxf5+ {[%clk 0:00:59.4]} 39... Kg7 {[%clk 0:00:02.8]}
40. Kxe4 {[%clk 0:00:59.3]} 40... Re7+ {[%clk 0:00:03.3]} 41. Re5 {[%clk
0:00:59.8]} 41... Rf7 {[%clk 0:00:03.4]} 42. Rxc5 {[%clk 0:00:57.3]} 42... Rf2
{[%clk 0:00:02.8]} 43. Rxa5 {[%clk 0:00:54.9]} 43... Rxg2 {[%clk 0:00:03.3]} 44.
Rh5 {[%clk 0:00:47.4]} 44... Rxa2 {[%clk 0:00:02.5]} 45. Rh3 {[%clk 0:00:45.8]}
45... Kg6 {[%clk 0:00:03.1]} 46. b4 {[%clk 0:00:45.2]} 46... Ra3 {[%clk
0:00:03.3]} 47. Kd5 {[%clk 0:00:44.3]} 47... Rb3 {[%clk 0:00:03.5]} 48. Kc6
{[%clk 0:00:42.6]} 48... Kg5 {[%clk 0:00:03.7]} 49. b5 {[%clk 0:00:42.7]} 49...
h5 {[%clk 0:00:04.1]} 50. b6 {[%clk 0:00:41.6]} 50... h4 {[%clk 0:00:04.2]} 51.
b7 {[%clk 0:00:41.2]} 51... Kg4 {[%clk 0:00:03.9]} 52. Rd3 {[%clk 0:00:41.3]}
1-0